[Event "44th Chess Olympiad Women 2022"]
[Site "Chennai"]
[Date "2022.08.01"]
[Round "4.28"]
[White "Frayna, Janelle Mae"]
[Black "Caxita, Esperanca"]
[Result "1-0"]
[WhiteElo "2224"]
[BlackElo "1955"]
[Annotator "TA"]
[PlyCount "141"]
[EventDate "2022.??.??"]
[TimeControl "60"]

{[%evp 20,141,0,11,54,56,72,78,89,68,74,77,70,55,70,68,77,37,43,32,31,23,35,8,
16,0,0,-7,-7,-7,0,-13,0,0,0,0,0,0,0,0,0,0,0,0,0,-16,-6,-36,-12,-31,0,-42,0,-54,
0,-58,-27,-129,-166,-164,-154,-150,-85,-90,-79,-132,-127,-167,-80,-78,-88,-95,
-81,-93,0,0,0,0,1649,1649,1058,0,0,0,0,0,0,0,0,0,0,0,0,0,0,-16,-16,-63,1557,
1262,1185,1089,1581,1552,1345,2222,2095,1293,2084,1556,1279,1221,1076,10,14,19,
771,694,1120,914,29985,29986,29992,29993]} 1. Nf3 {[%emt 0:00:16]} Nf6 {
[%emt 0:00:38]} 2. c4 {[%emt 0:00:19]} e6 {[%emt 0:00:11]} 3. g3 {[%emt 0:00:
00]} d5 {[%emt 0:00:48]} 4. Bg2 {[%emt 0:00:05]} c6 {[%emt 0:00:25]} 5. Qc2 {
[%emt 0:00:44]} Nbd7 {[%emt 0:01:27]} 6. d4 {[%emt 0:00:18]} Bd6 {[%emt 0:00:
00]} 7. Nbd2 {[%emt 0:00:48]} Qe7 {[%emt 0:06:56]} 8. O-O {[%emt 0:00:36]} O-O
{[%emt 0:00:35]} 9. e4 {[%emt 0:03:40]} dxe4 {[%emt 0:01:48]} 10. Nxe4 {
[%emt 0:03:15]} Nxe4 {[%emt 0:00:38]} 11. Qxe4 {[%emt 0:00:02]} Nf6 {[%emt 0:
00:00] E01: Catalan: Early deviations.} 12. Qc2 {[%emt 0:00:20]} h6 {[%emt 0:
00:00] [#]} 13. Bd2 $146 {[%emt 0:03:05]} ({Predecessor:} 13. b3 c5 14. Bb2
cxd4 15. Nxd4 Bd7 16. Bxb7 Rab8 17. Nc6 Bxc6 18. Bxc6 Rbc8 19. Bg2 {1-0 (35)
Cofman,V (2205)-Pek,I (1815) Untergrombach 2019}) 13... Rd8 {[%emt 0:04:22]
White is better.} 14. Rfd1 {[%emt 0:01:16]} Bd7 {[%emt 0:09:05]} 15. Ne5 {
[%emt 0:02:18]} Be8 {[%emt 0:05:30]} 16. Nd3 {[%emt 0:03:33] 0x0.
0019ebf61c0cdp-1022s more active pieces.} Rac8 {[%emt 0:05:37]} 17. Bc3 {
[%emt 0:07:11]} b6 {[%emt 0:04:37]} 18. b4 {[%emt 0:01:16]} b5 {[%emt 0:06:50]}
19. c5 {[%emt 0:00:32]} Bb8 {[%emt 0:00:52]} 20. a4 {[%emt 0:00:18]} a6 {
[%emt 0:01:03]} 21. axb5 {[%emt 0:07:32]} axb5 {[%emt 0:00:21]} 22. Ra6 {
[%emt 0:08:48]} Nd5 {[%emt 0:01:13]} 23. Bb2 {[%emt 0:00:04]} f6 {[%emt 0:00:
00]} 24. Qe2 {[%emt 0:03:22]} Bg6 {[%emt 0:05:41]} 25. Be4 {[%emt 0:01:33]} Bf7
{[%emt 0:01:51]} 26. Re1 {[%emt 0:01:12]} Qd7 {[%emt 0:03:57]} 27. Ra3 {
[%emt 0:05:32]} Re8 {[%emt 0:03:20]} 28. Rd1 {[%emt 0:01:33]} Re7 {[%emt 0:00:
00]} 29. h4 {[%emt 0:03:49]} Qe8 {[%emt 0:01:41]} 30. Re1 {[%emt 0:00:44]} Kf8
{[%emt 0:04:43]} 31. Ra6 {[%emt 0:03:06]} Bh5 {[%emt 0:02:47]} 32. Qd2 {
[%emt 0:06:41]} Bg4 {[%emt 0:02:32]} 33. Ra8 {[%emt 0:03:53]} Qh5 {[%emt 0:00:
00]} 34. Qc2 {[%emt 0:02:10]} Qe8 {[%emt 0:02:40]} 35. Bc1 {[%emt 0:01:24]} g5
{[%emt 0:00:33]} 36. Qd2 {[%emt 0:06:57]} (36. hxg5 $11 hxg5 37. f4 gxf4 38.
Qh2) 36... Kg7 {[%emt 0:01:21]} (36... Bf5 $15) 37. Bg2 {[%emt 0:04:14]} (37.
hxg5 $11 hxg5 38. f4) 37... Bf5 {[%emt 0:00:43]} 38. Be4 {[%emt 0:01:42]} (38.
Qe2 $11 {remains equal.}) 38... Bxe4 $17 {[%emt 0:00:36]} 39. Rxe4 {[%emt 0:00:
00] [#]} Qg6 $1 {[%emt 0:00:09]} 40. Qe1 {[%emt 0:03:33]} f5 {[%emt 0:01:09]} (
40... Rce8 $142 41. Ra3 f5) 41. h5 {[%emt 0:32:13]} Qf7 {[%emt 0:10:40]} 42.
Re5 {[%emt 0:00:00]} (42. Re2 $142 Rce8 43. f4 (43. Ra6 Qxh5 44. Ne5 Bxe5 $17))
42... Rce8 {[%emt 0:01:35]} ({Weaker is} 42... Qxh5 43. Rxe6 Rce8 44. Rxe7+
Rxe7 45. Ne5 Bxe5 46. dxe5 $11) 43. Ra6 {[%emt 0:00:00]} Bxe5 {[%emt 0:04:25]}
(43... Qxh5 $19 {and Black stays clearly on top. And now ...Nf6 would win.} 44.
Qe2 Qh3) 44. Nxe5 {[%emt 0:00:00]} Qxh5 {[%emt 0:02:36]} 45. Nxc6 {[%emt 0:00:
00]} Rc7 {[%emt 0:04:35]} 46. Ne5 {[%emt 0:00:00]} f4 {[%emt 0:03:51]} ({
Black should try} 46... Kg8 $17) 47. g4 $1 $11 {[%emt 0:00:00]} Qh4 {[%emt 0:
00:00][%cal Yf4f3]} 48. Qe4 {[%emt 0:00:00] Threatens to win with Qg6+.} f3 $2
{[%emt 0:03:56]} (48... Qh3 $11) 49. Qg6+ $18 {[%emt 0:00:00]} Kf8 {[%emt 0:00:
07]} 50. Rxe6 $2 {[%emt 0:00:00]} (50. Ra3 $18) 50... Rxe6 $11 {[%emt 0:00:09]}
51. Qxe6 {[%emt 0:00:00] Intending Ng6+ and mate. Dancing on a razor blade.}
Qh3 {[%emt 0:00:37][%csl Gf3][%cal Rh3g2]} 52. Qf5+ {[%emt 0:00:00]} Kg8 {
[%emt 0:00:42][%csl Gf3][%cal Rh3g2]} 53. Qe6+ {[%emt 0:00:08]} Kh8 {[%emt 0:
01:13][%csl Gf3][%cal Rh3g2]} (53... Kg7 $5 54. Qg6+ Kh8 55. Qe8+ Kh7 56. Qg6+
Kh8 57. Qe8+ Kh7 58. Qg6+ Kh8 $11) 54. Qe8+ {[%emt 0:00:08]} Kg7 {[%emt 0:00:
16][%csl Gf3][%cal Rh3g2]} (54... Kh7 $5 55. Qg6+ Kh8 56. Qe8+ Kh7 57. Qg6+ Kh8
58. Qe8+ $11) 55. Qg6+ {[%emt 0:00:05]} Kf8 {[%emt 0:00:26][%csl Gf3][%cal
Rh3g2]} (55... Kh8 $5 56. Qe8+ Kh7 57. Qg6+ Kh8 58. Qe8+ $11) 56. Qf5+ {
[%emt 0:00:01]} Kg7 {[%emt 0:00:58][%csl Gf3][%cal Rh3g2]} 57. Nxf3 {[%emt 0:
00:33]} Rf7 {[%emt 0:00:44]} 58. Qe5+ {[%emt 0:00:51]} (58. Nxg5 $1 $11 hxg5
59. Qxd5 (59. Qxg5+ $2 Kh7 $19) 59... Qxg4+ 60. Kf1) 58... Kg6 $2 {[%emt 0:00:
54]} (58... Nf6 $15 59. Nh2 Qc3) 59. Qe4+ {[%emt 0:00:17]} Kg7 {[%emt 0:00:27]}
60. Ne5 {[%emt 0:00:11] Qg6+ would kill now.} Nf4 {[%emt 0:00:45] Inhibits
Qg6+.} 61. Bxf4 {[%emt 0:05:09]} Rxf4 $18 {[%emt 0:00:00] Endgame KQR-KQN} 62.
Qb7+ {[%emt 0:00:40]} (62. Qg6+ $142 Kh8 63. Qe6) 62... Kg8 {[%emt 0:00:27]}
63. Qc8+ {[%emt 0:00:09]} Kg7 {[%emt 0:00:00]} 64. Qd7+ {[%emt 0:00:09]} Kg8 {
[%emt 0:00:38]} 65. Qe6+ {[%emt 0:04:22]} Kg7 {[%emt 0:00:26]} 66. d5 $2 {
[%emt 0:00:31]} (66. c6 $18 Qh4 67. Qe7+ Kg8 68. Qe6+ Kg7 69. Qe7+ Kg8 70. Qe8+
Kg7 71. Qe7+) 66... Qh4 $1 $11 {[%emt 0:00:00]} 67. Qg6+ {[%emt 0:00:42]} Kh8
$2 {[%emt 0:00:45] [#]} (67... Kf8 $11 68. Qc2 Rxg4+ 69. Nxg4 Qxg4+ 70. Kh2
Qf4+ 71. Kg2 Qg4+ 72. Kf1 Qh3+ 73. Ke2 Qg4+ 74. Kf1 Qh3+ 75. Kg1 Qg4+ 76. Kf1)
68. Qc2 $1 $18 {[%emt 0:03:29]} Kg7 {[%emt 0:00:23]} 69. c6 {[%emt 0:00:34]
[%cal Yc5c6,Yc6c7] aiming for c7.} Kf6 {[%emt 0:00:46]} 70. Qb2 {[%emt 0:01:24]
} Qh3 {[%emt 0:00:47]} 71. c7 {[%emt 0:02:10] Quite a comeback for White.
Weighted Error Value: White=0.29 (precise) /Black=0.13 (very precise)} 1-0

[Event "44th Chess Olympiad Women 2022"]
[Site "Chennai"]
[Date "2022.08.01"]
[Round "4.28"]
[White "Junior, Ednasia"]
[Black "Fronda, Jan Jodilyn"]
[Result "0-1"]
[WhiteElo "1849"]
[BlackElo "2181"]
[Annotator "NA RC"]
[PlyCount "78"]
[EventDate "2022.??.??"]
[TimeControl "60"]

1. c4 {[%emt 0:00:05]} e6 {[%emt 0:00:28]} 2. Nc3 {[%emt 0:00:15]} d5 {[%emt 0:
00:00]} 3. d4 {[%emt 0:00:17]} c6 {[%emt 0:00:51]} 4. Bf4 {[%emt 0:01:06]} Nf6
{[%emt 0:00:37]} 5. e3 {[%emt 0:00:27]} Nbd7 {[%emt 0:00:34]} 6. Nf3 {[%emt 0:
00:00]} Be7 {[%emt 0:01:00]} 7. a3 {[%emt 0:02:17]} a5 {[%emt 0:00:48]} 8. h3 {
[%emt 0:01:35]} O-O {[%emt 0:01:04]} 9. Bd3 {[%emt 0:01:12]} dxc4 {[%emt 0:00:
00]} 10. Bxc4 {[%emt 0:00:16]} b5 {[%emt 0:00:12]} 11. Bd3 {[%emt 0:02:11]} Bb7
{[%emt 0:00:19]} 12. O-O {[%emt 0:00:21]} Rc8 {[%emt 0:04:45]} 13. Rc1 {
[%emt 0:01:18]} h6 {[%emt 0:03:06]} 14. Bb1 {[%emt 0:03:44]} b4 {[%emt 0:03:47]
} 15. axb4 {[%emt 0:01:15]} axb4 {[%emt 0:00:08]} 16. Na4 {[%emt 0:04:38]} Qa5
{[%emt 0:02:00]} 17. Ne5 {[%emt 0:02:54]} Rfd8 {[%emt 0:03:30]} 18. Qc2 {
[%emt 0:03:23]} c5 {[%emt 0:07:24]} 19. Nxd7 {[%emt 0:11:30]} Rxd7 {[%emt 0:00:
00]} 20. dxc5 {[%emt 0:06:19]} Be4 {[%emt 0:02:04]} 21. Qb3 {[%emt 0:01:06]}
Bd5 {[%emt 0:00:08]} 22. Qc2 {[%emt 0:06:53]} b3 {[%emt 0:00:12]} 23. Qe2 {
[%emt 0:02:22]} Qxa4 {[%emt 0:00:08]} 24. Rfd1 {[%emt 0:01:46]} Rxc5 {[%emt 0:
00:00]} 25. Rxc5 {[%emt 0:01:39]} Bxc5 {[%emt 0:00:07]} 26. e4 {[%emt 0:05:30]}
Bc4 {[%emt 0:01:57]} 27. Qe1 {[%emt 0:04:29]} Bb4 {[%emt 0:05:14]} 28. Bd2 {
[%emt 0:00:39]} Rxd2 {[%emt 0:00:18]} 29. Rxd2 {[%emt 0:00:07]} Qa5 {[%emt 0:
00:00]} 30. Qc1 {[%emt 0:01:13]} Bxd2 {[%emt 0:00:19]} 31. Qxc4 {[%emt 0:00:10]
} Qa1 {[%emt 0:00:46]} 32. Qd3 {[%emt 0:03:44]} e5 {[%emt 0:00:26]} 33. Kh2 {
[%emt 0:08:23]} Qxb2 {[%emt 0:00:26]} 34. Kg1 {[%emt 0:06:47]} Qc1+ {[%emt 0:
00:00]} 35. Kh2 {[%emt 0:00:25]} Qe1 {[%emt 0:00:41]} 36. Qxb3 {[%emt 0:04:21]}
Bf4+ {[%emt 0:00:10]} 37. g3 {[%emt 0:00:24]} Qxf2+ {[%emt 0:00:06]} 38. Kh1 {
[%emt 0:00:12]} Bxg3 {[%emt 0:00:10]} 39. Qc2 {[%emt 0:00:49]} Qf1# {[%emt 0:
00:00]} 0-1

[Event "44th Chess Olympiad Women 2022"]
[Site "Chennai"]
[Date "2022.08.01"]
[Round "4.28"]
[White "San Diego, Marie Antoinette"]
[Black "Pires, Luzia"]
[Result "1-0"]
[WhiteElo "2101"]
[BlackElo "1842"]
[Annotator "NA RC"]
[PlyCount "85"]
[EventDate "2022.??.??"]
[TimeControl "60"]

1. d4 {[%emt 0:00:06]} d5 {[%emt 0:00:54]} 2. Nf3 {[%emt 0:00:28]} Nf6 {
[%emt 0:00:46]} 3. c4 {[%emt 0:00:15]} e6 {[%emt 0:01:42]} 4. Nc3 {[%emt 0:00:
00]} c6 {[%emt 0:01:46]} 5. Bg5 {[%emt 0:00:56]} Nbd7 {[%emt 0:02:07]} 6. Qc2 {
[%emt 0:01:14]} Bd6 {[%emt 0:00:44]} 7. e3 {[%emt 0:06:07]} b6 {[%emt 0:10:22]}
8. cxd5 {[%emt 0:04:04]} exd5 {[%emt 0:02:24]} 9. Bd3 {[%emt 0:02:35]} h6 {
[%emt 0:00:28]} 10. Bh4 {[%emt 0:00:27]} Bb7 {[%emt 0:00:55]} 11. O-O {[%emt 0:
00:00]} O-O {[%emt 0:01:50]} 12. Rfe1 {[%emt 0:05:02]} Qc7 {[%emt 0:00:54]} 13.
Rac1 {[%emt 0:01:40]} Rac8 {[%emt 0:00:21]} 14. Bf5 {[%emt 0:01:35]} g5 {
[%emt 0:08:56]} 15. Bg3 {[%emt 0:02:30]} Bxg3 {[%emt 0:11:07]} 16. hxg3 {
[%emt 0:00:18]} Qd6 {[%emt 0:01:36]} 17. Ne5 {[%emt 0:08:23]} Rce8 {[%emt 0:00:
00]} 18. f4 {[%emt 0:03:32]} Kg7 {[%emt 0:05:15]} 19. Rf1 {[%emt 0:04:34]} Bc8
{[%emt 0:02:09]} 20. Qf2 {[%emt 0:06:28]} Ng8 {[%emt 0:02:17]} 21. g4 {[%emt 0:
00:00]} f6 {[%emt 0:03:18]} 22. Nb5 cxb5 {[%emt 0:05:57]} 23. Rc6 {[%emt 0:00:
00]} Qb8 {[%emt 0:04:21]} 24. Nxd7 {[%emt 0:02:55]} Qb7 {[%emt 0:02:47]} 25.
Rfc1 {[%emt 0:05:57]} Bxd7 {[%emt 0:00:52]} 26. Rc7 {[%emt 0:01:48]} Qb8 {
[%emt 0:00:14]} 27. Rxd7+ {[%emt 0:00:35]} Re7 {[%emt 0:00:48]} 28. Rxd5 {
[%emt 0:00:50]} Rfe8 {[%emt 0:00:18]} 29. e4 {[%emt 0:01:05]} Qxf4 {[%emt 0:00:
00]} 30. Qxf4 {[%emt 0:00:11]} gxf4 {[%emt 0:00:13]} 31. Kf2 {[%emt 0:01:18]}
Rb7 {[%emt 0:01:44]} 32. Kf3 {[%emt 0:00:29]} b4 {[%emt 0:00:26]} 33. Kxf4 {
[%emt 0:01:48]} Ree7 {[%emt 0:00:26]} 34. Rd8 {[%emt 0:02:13]} Rec7 {[%emt 0:
00:00]} 35. Rxc7+ {[%emt 0:00:19]} Rxc7 {[%emt 0:00:02]} 36. d5 {[%emt 0:00:25]
} Rc2 {[%emt 0:04:47]} 37. d6 {[%emt 0:00:19]} Kf7 {[%emt 0:00:22]} 38. d7 {
[%emt 0:02:02]} Rd2 {[%emt 0:00:58]} 39. Ra8 {[%emt 0:00:30]} Ne7 {[%emt 0:00:
00]} 40. d8=Q {[%emt 0:00:18]} Rd4 {[%emt 0:00:19]} 41. Qd7 Rxd7 {[%emt 0:00:
00]} 42. Rc8 {[%emt 0:00:05]} Rd8 43. Rxd8 {[%emt 0:31:01]} 1-0

[Event "44th Chess Olympiad Women 2022"]
[Site "Chennai"]
[Date "2022.08.01"]
[Round "4.29"]
[White "Caku, Kler"]
[Black "Borda Rodas, Anapaola S."]
[Result "0-1"]
[WhiteElo "1626"]
[BlackElo "2183"]
[Annotator "NA RC"]
[PlyCount "110"]
[EventDate "2022.??.??"]
[TimeControl "60"]

1. e4 {[%emt 0:00:03]} e5 {[%emt 0:00:17]} 2. Nf3 {[%emt 0:00:07]} Nc6 {
[%emt 0:00:21]} 3. d4 {[%emt 0:00:14]} exd4 {[%emt 0:00:09]} 4. Nxd4 {[%emt 0:
00:00]} Bc5 {[%emt 0:00:26]} 5. Be3 {[%emt 0:00:02]} Qf6 {[%emt 0:00:00]} 6. c3
{[%emt 0:00:15]} Nge7 {[%emt 0:00:21]} 7. Be2 {[%emt 0:00:17]} d5 {[%emt 0:00:
00]} 8. O-O {[%emt 0:00:21]} O-O {[%emt 0:00:06]} 9. Nxc6 {[%emt 0:00:11]} Qxc6
{[%emt 0:00:06]} 10. Bxc5 {[%emt 0:00:43]} Qxc5 {[%emt 0:00:08]} 11. Nd2 {
[%emt 0:00:33]} Be6 {[%emt 0:01:00]} 12. Nb3 {[%emt 0:03:14]} Qb6 {[%emt 0:00:
00]} 13. Bf3 {[%emt 0:05:14]} Rad8 {[%emt 0:03:55]} 14. Qc2 {[%emt 0:03:40]} c5
{[%emt 0:02:35]} 15. exd5 {[%emt 0:11:08]} Bxd5 {[%emt 0:08:15]} 16. Bxd5 {
[%emt 0:04:47]} Nxd5 {[%emt 0:00:15]} 17. Qe4 {[%emt 0:04:20]} Nf6 {[%emt 0:00:
00]} 18. Qc4 {[%emt 0:02:03]} Rd5 {[%emt 0:00:37]} 19. Rad1 {[%emt 0:05:06]}
Rfd8 {[%emt 0:00:52]} 20. Rxd5 {[%emt 0:02:35]} Rxd5 {[%emt 0:00:08]} 21. Re1 {
[%emt 0:02:01]} h6 {[%emt 0:02:23]} 22. h3 {[%emt 0:03:47]} Qd6 {[%emt 0:06:13]
} 23. Qb5 {[%emt 0:07:35]} b6 {[%emt 0:03:02]} 24. Qe2 {[%emt 0:07:13]} Rd3 {
[%emt 0:05:28]} 25. Qe7 {[%emt 0:06:55]} Qxe7 {[%emt 0:08:20]} 26. Re3 {
[%emt 0:00:04]} Qe6 27. Rxe6 {[%emt 0:00:31]} Rd1+ {[%emt 0:00:53]} 28. Kh2 {
[%emt 0:00:08]} a5 {[%emt 0:00:42]} 29. Re7 {[%emt 0:09:27]} Rb1 {[%emt 0:00:
00]} 30. a4 {[%emt 0:03:38]} Rxb2 {[%emt 0:04:31]} 31. Rb7 {[%emt 0:03:21]}
Rxf2 {[%emt 0:03:44]} 32. Nxa5 {[%emt 0:00:59]} Rb2 33. Rxb6 Ra2 {[%emt 0:00:
00]} 34. Rc6 {[%emt 0:05:15]} Ne4 {[%emt 0:00:28]} 35. Nb7 {[%emt 0:04:02]}
Rxa4 {[%emt 0:00:20]} 36. Nd6 {[%emt 0:03:23]} Nxd6 {[%emt 0:02:53]} 37. Rxd6 {
[%emt 0:00:03]} Rc4 {[%emt 0:01:10]} 38. Rd3 {[%emt 0:00:15]} f5 {[%emt 0:00:
00]} 39. Kg3 {[%emt 0:00:22]} Kf7 {[%emt 0:00:06]} 40. Kf3 {[%emt 0:00:33]} Ke6
{[%emt 0:00:33]} 41. Re3+ {[%emt 0:30:24]} Kf6 {[%emt 0:30:54]} 42. Rd3 {
[%emt 0:01:09]} Ke5 {[%emt 0:00:33]} 43. Re3+ {[%emt 0:01:16]} Re4 {[%emt 0:00:
00]} 44. Rd3 {[%emt 0:01:24]} f4 {[%emt 0:01:05]} 45. Kg4 {[%emt 0:00:00]} Re2
{[%emt 0:00:00]} 46. Kf3 {[%emt 0:00:00]} Rc2 {[%emt 0:00:00]} 47. g3 {[%emt 0:
00:00]} g5 {[%emt 0:00:00]} 48. h4 {[%emt 0:00:00]} c4 {[%emt 0:00:00]} 49.
gxf4+ {[%emt 0:00:00]} gxf4 {[%emt 0:00:00]} 50. Rd8 {[%emt 0:00:00]} Rxc3+ {
[%emt 0:00:00]} 51. Kg4 {[%emt 0:00:00]} Rg3+ {[%emt 0:00:00]} 52. Kh5 {
[%emt 0:00:00]} c3 {[%emt 0:00:00]} 53. Re8+ {[%emt 0:00:00]} Kd4 {[%emt 0:00:
00]} 54. Rd8+ {[%emt 0:00:00]} Ke3 {[%emt 0:00:00]} 55. Rc8 {[%emt 0:00:00]}
Kd2 {[%emt 0:00:00]} 0-1

[Event "44th Chess Olympiad Women 2022"]
[Site "Chennai"]
[Date "2022.08.01"]
[Round "4.29"]
[White "Campos, Maria Jose"]
[Black "Shuqja, Klean"]
[Result "1-0"]
[WhiteElo "2185"]
[BlackElo "1883"]
[Annotator "NA RC"]
[PlyCount "87"]
[EventDate "2022.??.??"]
[TimeControl "60"]

1. c4 {[%emt 0:00:35]} Nf6 {[%emt 0:00:29]} 2. g3 {[%emt 0:00:18]} e6 {[%emt 0:
00:00]} 3. Bg2 {[%emt 0:00:08]} d5 {[%emt 0:00:09]} 4. Nf3 {[%emt 0:00:23]} Be7
{[%emt 0:00:50]} 5. O-O {[%emt 0:01:10]} O-O {[%emt 0:00:05]} 6. b3 {[%emt 0:
00:00]} d4 {[%emt 0:00:19]} 7. Bb2 {[%emt 0:00:39]} c5 {[%emt 0:00:10]} 8. b4 {
[%emt 0:03:44]} Qc7 {[%emt 0:18:11]} 9. bxc5 {[%emt 0:06:03]} e5 {[%emt 0:00:
00]} 10. e3 {[%emt 0:00:25]} Bg4 {[%emt 0:17:41]} 11. Qc1 {[%emt 0:10:29]} Bxf3
{[%emt 0:04:59]} 12. Bxf3 {[%emt 0:00:05]} Bxc5 {[%emt 0:00:28]} 13. exd4 {
[%emt 0:02:23]} exd4 {[%emt 0:05:25]} 14. Na3 {[%emt 0:04:55]} Nc6 {[%emt 0:00:
00]} 15. Nb5 {[%emt 0:03:05]} Qd7 {[%emt 0:00:34]} 16. Re1 {[%emt 0:03:34]} a6
{[%emt 0:04:04]} 17. Ba3 {[%emt 0:03:17]} Bxa3 {[%emt 0:05:49]} 18. Nxa3 {
[%emt 0:00:05]} Qf5 {[%emt 0:01:32]} 19. Bg2 {[%emt 0:08:59]} Ng4 {[%emt 0:00:
00]} 20. f3 {[%emt 0:01:05]} Nge5 {[%emt 0:05:37]} 21. f4 {[%emt 0:02:09]} Nd7
{[%emt 0:03:26]} 22. Rb1 {[%emt 0:02:11]} Rab8 {[%emt 0:03:15]} 23. Be4 {
[%emt 0:01:27]} Qc5 {[%emt 0:01:10]} 24. d3 {[%emt 0:00:20]} Nf6 {[%emt 0:00:
00]} 25. Nc2 {[%emt 0:01:02]} Nxe4 {[%emt 0:01:19]} 26. Rxe4 {[%emt 0:00:06]}
b5 {[%emt 0:01:52]} 27. cxb5 {[%emt 0:03:00]} Rxb5 {[%emt 0:00:14]} 28. Ne1 {
[%emt 0:01:08]} Qc3 {[%emt 0:02:16]} 29. Qxc3 {[%emt 0:04:28]} dxc3 {[%emt 0:
00:00]} 30. Rc1 {[%emt 0:00:22]} Rc5 {[%emt 0:02:18]} 31. Rc4 {[%emt 0:01:12]}
Rxc4 {[%emt 0:00:41]} 32. dxc4 {[%emt 0:00:06]} Re8 {[%emt 0:01:20]} 33. Kf1 {
[%emt 0:00:28]} Nb4 {[%emt 0:02:56]} 34. a3 {[%emt 0:01:00]} Nc6 {[%emt 0:00:
00]} 35. Rxc3 {[%emt 0:00:09]} f6 {[%emt 0:00:32]} 36. Kf2 {[%emt 0:01:22]} Re4
{[%emt 0:00:28]} 37. Nc2 {[%emt 0:00:41]} a5 {[%emt 0:00:27]} 38. Kf3 {[%emt 0:
00:00]} f5 {[%emt 0:00:36]} 39. Ne3 {[%emt 0:04:50]} Nd4+ {[%emt 0:00:30]} 40.
Kf2 {[%emt 0:00:22]} g6 {[%emt 0:00:28]} 41. c5 {[%emt 0:33:31]} Re6 {[%emt 0:
00:00]} 42. Rd3 {[%emt 0:00:00]} Re4 {[%emt 0:02:24]} 43. Nd5 {[%emt 0:00:00]}
Kf7 {[%emt 0:15:41]} 44. Nc3 {[%emt 0:00:00]} 1-0

[Event "44th Chess Olympiad Women 2022"]
[Site "Chennai"]
[Date "2022.08.01"]
[Round "4.29"]
[White "Sarquis, Maria Belen"]
[Black "Gjergji, Rozana"]
[Result "1-0"]
[WhiteElo "2072"]
[BlackElo "1920"]
[Annotator "NA RC"]
[PlyCount "193"]
[EventDate "2022.??.??"]
[TimeControl "60"]

1. e4 {[%emt 0:00:05]} d5 {[%emt 0:00:05]} 2. exd5 {[%emt 0:00:05]} Qxd5 {
[%emt 0:00:04]} 3. Nc3 {[%emt 0:00:06]} Qa5 {[%emt 0:00:06]} 4. d4 {[%emt 0:00:
00]} Nf6 {[%emt 0:00:05]} 5. Bc4 {[%emt 0:00:07]} c6 {[%emt 0:00:18]} 6. Bd2 {
[%emt 0:00:10]} Qc7 {[%emt 0:01:32]} 7. Qe2 {[%emt 0:03:33]} Bf5 {[%emt 0:00:
00]} 8. O-O-O {[%emt 0:02:53]} e6 {[%emt 0:01:02]} 9. f3 {[%emt 0:01:34]} h5 {
[%emt 0:05:08]} 10. h4 {[%emt 0:04:01]} Nbd7 {[%emt 0:02:28]} 11. Nh3 {[%emt 0:
00:00]} Bd6 {[%emt 0:04:37]} 12. Ng5 {[%emt 0:06:24]} Nb6 {[%emt 0:04:20]} 13.
Bb3 {[%emt 0:01:22]} O-O-O {[%emt 0:02:36]} 14. Kb1 {[%emt 0:00:42]} Nbd5 {
[%emt 0:04:48]} 15. Nce4 Nxe4 {[%emt 0:04:38]} 16. Nxe4 {[%emt 0:08:55]} Bf4 {
[%emt 0:07:11]} 17. Be1 {[%emt 0:05:20]} Kb8 {[%emt 0:11:22]} 18. Bf2 {[%emt 0:
00:00]} Nf6 {[%emt 0:07:33]} 19. Ng5 {[%emt 0:04:01]} Ka8 {[%emt 0:04:31]} 20.
g3 {[%emt 0:02:19]} Bd6 {[%emt 0:02:23]} 21. Rhg1 {[%emt 0:00:28]} Rd7 {
[%emt 0:03:20]} 22. g4 {[%emt 0:01:23]} Bg6 {[%emt 0:00:22]} 23. Ka1 {[%emt 0:
00:00]} Re8 {[%emt 0:04:28]} 24. Qc4 {[%emt 0:07:46]} Bf4 {[%emt 0:04:20]} 25.
c3 {[%emt 0:05:37]} Nd5 {[%emt 0:01:44]} 26. Rde1 {[%emt 0:02:27]} Bxg5 {
[%emt 0:05:21]} 27. hxg5 {[%emt 0:00:20]} Qf4 {[%emt 0:00:03]} 28. Qe2 {
[%emt 0:15:48]} Qxg5 {[%emt 0:00:40]} 29. Bg3 {[%emt 0:00:05]} hxg4 {[%emt 0:
00:00]} 30. fxg4 {[%emt 0:00:06]} Qd8 {[%emt 0:03:10]} 31. a3 {[%emt 0:02:37]}
Qa5 {[%emt 0:02:10]} 32. Ka2 {[%emt 0:01:35]} b5 {[%emt 0:00:49]} 33. Qd2 {
[%emt 0:01:05]} c5 {[%emt 0:00:32]} 34. Bxd5+ {[%emt 0:02:22]} Rxd5 {[%emt 0:
00:00]} 35. Qg2 {[%emt 0:00:08]} Red8 {[%emt 0:07:36]} 36. dxc5 {[%emt 0:01:18]
} Qa4 {[%emt 0:00:01]} 37. Bd6 {[%emt 0:02:49]} Bc2 {[%emt 0:01:43]} 38. Rgf1 {
[%emt 0:07:41]} Qb3+ {[%emt 0:00:21]} 39. Ka1 {[%emt 0:00:05]} Bd3 {[%emt 0:00:
00]} 40. Rf4 {[%emt 0:01:22]} Bc4 {[%emt 0:00:17]} 41. Rxc4 {[%emt 0:02:00]}
Qxc4 {[%emt 0:00:41]} 42. Qf3 {[%emt 0:03:46]} Rd7 {[%emt 0:04:23]} 43. Qh1 {
[%emt 0:02:06]} Kb7 {[%emt 0:01:26]} 44. Qh8 {[%emt 0:00:56]} R5xd6 {[%emt 0:
00:00]} 45. cxd6 {[%emt 0:00:06]} Qxg4 {[%emt 0:00:24]} 46. Qh1+ {[%emt 0:00:
00]} Kb6 {[%emt 0:02:12]} 47. Rg1 {[%emt 0:03:27]} Qf4 {[%emt 0:01:46]} 48.
Rxg7 {[%emt 0:00:25]} Qxd6 {[%emt 0:00:50]} 49. Rg1 {[%emt 0:00:09]} f5 {
[%emt 0:02:54]} 50. Qh5 {[%emt 0:01:43]} Kc6 {[%emt 0:04:40]} 51. Re1 {[%emt 0:
00:00]} Kc7 {[%emt 0:07:11]} 52. Qe8 {[%emt 0:01:37]} f4 {[%emt 0:04:14]} 53.
Rxe6 {[%emt 0:02:11]} Qd1+ {[%emt 0:00:53]} 54. Ka2 {[%emt 0:00:04]} Qd5+ {
[%emt 0:00:11]} 55. Ka1 {[%emt 0:00:30]} f3 {[%emt 0:00:08]} 56. Rf6 {[%emt 0:
00:00]} Qc4 {[%emt 0:03:56]} 57. Qe1 {[%emt 0:04:09]} Qe2 {[%emt 0:00:09]} 58.
Qg3+ {[%emt 0:00:39]} Kb7 {[%emt 0:05:36]} 59. Qxf3+ {[%emt 0:00:38]} Qxf3 {
[%emt 0:00:06]} 60. Rxf3 {[%emt 0:00:04]} a6 {[%emt 0:00:05]} 61. Kb1 {[%emt 0:
00:00]} Rd6 {[%emt 0:00:13]} 62. Kc2 {[%emt 0:00:05]} Kc6 {[%emt 0:00:04]} 63.
b3 {[%emt 0:00:12]} Kc5 {[%emt 0:00:33]} 64. Rf5+ {[%emt 0:00:13]} Kc6 {
[%emt 0:00:11]} 65. Rg5 {[%emt 0:00:51]} Rh6 {[%emt 0:00:15]} 66. Rg2 {[%emt 0:
00:00]} Rh1 {[%emt 0:00:27]} 67. Rd2 {[%emt 0:01:22]} a5 {[%emt 0:01:01]} 68.
Rg2 {[%emt 0:00:17]} Ra1 {[%emt 0:00:18]} 69. Kb2 {[%emt 0:00:06]} Rd1 {
[%emt 0:00:09]} 70. Rg6+ {[%emt 0:00:12]} Kc5 {[%emt 0:00:51]} 71. b4+ {
[%emt 0:00:49]} axb4 {[%emt 0:00:16]} 72. axb4+ {[%emt 0:00:08]} Kc4 {[%emt 0:
00:00]} 73. Rc6+ {[%emt 0:00:34]} Kd5 {[%emt 0:00:29]} 74. Rc5+ {[%emt 0:00:05]
} Kd6 {[%emt 0:00:03]} 75. Rxb5 {[%emt 0:00:06]} Kc6 {[%emt 0:00:10]} 76. Rh5 {
[%emt 0:00:26]} Rg1 {[%emt 0:00:16]} 77. c4 {[%emt 0:00:30]} Rg3 {[%emt 0:00:
00]} 78. Rh6+ {[%emt 0:00:30]} Kc7 {[%emt 0:00:06]} 79. c5 {[%emt 0:00:39]} Kb7
{[%emt 0:00:10]} 80. Rd6 {[%emt 0:00:52]} Kc7 {[%emt 0:01:19]} 81. b5 {[%emt 0:
00:00]} Rg5 {[%emt 0:02:12]} 82. Rc6+ {[%emt 0:01:53]} Kb7 {[%emt 0:00:08]} 83.
Kb3 {[%emt 0:00:34]} Rg3+ {[%emt 0:00:27]} 84. Kb4 {[%emt 0:00:33]} Rg4+ {
[%emt 0:00:54]} 85. Ka5 {[%emt 0:00:10]} Rg1 {[%emt 0:00:09]} 86. Rh6 {[%emt 0:
00:00]} Ra1+ {[%emt 0:00:08]} 87. Kb4 {[%emt 0:00:08]} Rb1+ {[%emt 0:00:07]}
88. Kc4 {[%emt 0:00:07]} Rc1+ {[%emt 0:00:05]} 89. Kd5 {[%emt 0:00:17]} Rd1+ {
[%emt 0:00:12]} 90. Ke6 {[%emt 0:00:13]} Re1+ {[%emt 0:00:16]} 91. Kd7 {
[%emt 0:00:11]} Rc1 {[%emt 0:01:20]} 92. c6+ {[%emt 0:00:42]} Kb6 {[%emt 0:00:
00]} 93. c7+ {[%emt 0:00:13]} Kb7 {[%emt 0:00:02]} 94. Rc6 {[%emt 0:01:39]}
Rd1+ {[%emt 0:00:06]} 95. Rd6 {[%emt 0:00:32]} Rc1 {[%emt 0:00:13]} 96. b6 {
[%emt 0:00:11]} Rc2 {[%emt 0:00:14]} 97. Kd8 {[%emt 0:00:11]} 1-0